bitfinex-derivatives/quotes_ETHF0:USTF0_20250210
["timestamp","ask_amount","ask_price","bid_price","bid_amount"]
[1739162240715,2.3918,2629.8,2629.3,0.5937]
[1739162241109,4.05382096,2629.5,2629.3,0.5937]
[1739162241309,4.05382096,2629.7,2629.4,0.5594]
[1739162241515,3.796,2630.4,2629.6,3.2078]
[1739162241827,4.29159754,2630.3,2629.9,3.2078]
[1739162242308,0.18697367,2630.1,2630.0,0.561]
[1739162242512,0.18697367,2630.1,2630.0,1.1204]
[1739162243114,4.43456323,2630.1,2630.0,1.1204]
[1739162243324,4.43456323,2630.1,2630.0,0.561]
[1739162243515,7.38513854,2630.5,2630.0,0.561]
[1739162243714,4.17733854,2630.5,2630.0,3.7688]
[1739162244012,4.01448516,2630.4,2629.7,0.5594]
[1739162244216,5.56043577,2630.2,2629.3,3.7688]
[1739162244417,0.06435567,2630.1,2629.3,4.3263]
[1739162244612,4.9192035,2630.1,2629.3,4.3263]
[1739162244825,1.1414,2630.0,2629.3,4.3263]
[1739162245210,4.24444783,2629.9,2629.3,4.3263]
[1739162245415,4.24444783,2629.9,2629.6,3.2078]
[1739162245714,0.18781083,2630.0,2629.6,3.2078]
[1739162245920,1.819,2630.2,2629.9,3.2078]
[1739162246117,3.69189887,2630.4,2630.0,0.5826]
[1739162246322,3.69189887,2630.4,2630.0,1.1401]
[1739162246520,3.97378151,2630.3,2630.0,1.1401]
[1739162246821,3.97378151,2630.4,2630.0,1.1401]
[1739162247117,1.82470277,2630.5,2630.0,1.1401]
[1739162247621,4.17832254,2630.4,2630.0,1.1401]
[1739162247919,6.69902141,2630.4,2630.0,1.1401]
[1739162248115,7.30042141,2630.4,2630.0,1.1401]
[1739162248715,10.50822141,2630.4,2630.0,1.1401]
[1739162248917,0.5726,2630.3,2630.0,1.1401]
[1739162249320,4.01719468,2630.2,2630.0,1.1401]
[1739162250924,0.6014,2630.4,2630.0,1.1401]
[1739162251221,4.1348359,2630.3,2630.0,1.1401]
[1739162252019,4.1348359,2630.3,2630.2,3.2078]
[1739162252617,0.00570277,2630.5,2630.2,3.2078]
[1739162253317,1.819,2631.4,2630.4,2.52069887]
[1739162253513,1.819,2631.4,2631.1,3.2078]
[1739162253714,4.02503919,2631.2,2631.1,3.2078]
[1739162253919,1.819,2631.4,2631.1,3.2078]
[1739162254223,1.819,2631.4,2631.2,0.5652]
[1739162254518,0.00570277,2631.5,2631.2,0.5652]
[1739162254726,0.00570277,2631.5,2631.2,1.1568]
[1739162254917,4.17234684,2631.5,2631.4,3.2078]
[1739162255221,0.00570277,2631.5,2631.4,3.2078]
[1739162256121,4.16115885,2631.5,2631.2,1.1568]
[1739162257918,0.00570277,2631.5,2631.4,3.2078]
[1739162258620,0.00570277,2631.5,2631.2,1.1568]
[1739162259722,4.2153699,2631.4,2631.2,1.1568]
[1739162263122,4.2153699,2631.4,2631.1,3.2078]
[1739162277925,4.2153699,2631.4,2631.2,3.2078]
[1739162278124,4.2153699,2631.4,2631.0,0.00570277]
[1739162278525,4.2153699,2631.4,2631.3,3.2078]
[1739162279131,4.2153699,2631.4,2631.0,0.00570277]
[1739162279327,4.2153699,2631.4,2631.2,3.2078]
[1739162279536,4.2153699,2631.4,2631.0,0.00570277]
[1739162279740,4.2153699,2631.4,2631.2,3.2078]
[1739162280828,4.2153699,2631.4,2631.0,0.00570277]
[1739162281237,1.85991043,2631.2,2631.0,0.00570277]
[1739162281735,4.5627839,2631.1,2631.0,0.00570277]
[1739162281934,0.5542,2631.3,2631.0,0.00570277]
[1739162282137,2.43511043,2631.2,2631.0,0.00570277]
[1739162282333,3.9875839,2631.1,2631.0,0.00570277]
[1739162282533,0.06440859,2631.1,2631.0,0.00570277]
[1739162282842,4.39929096,2631.1,2631.0,0.00570277]
[1739162283228,4.33489651,2631.1,2631.0,0.00570277]
[1739162284333,1.817,2631.2,2631.0,0.00570277]
[1739162284535,0.00570277,2631.5,2631.1,3.2078]
[1739162284940,4.2819896,2631.4,2631.0,0.58260277]
[1739162285341,4.2819896,2631.4,2631.0,3.79040277]
[1739162288640,4.2819896,2631.4,2631.3,3.2078]
[1739162291248,4.2819896,2631.4,2631.0,0.58260277]
[1739162292341,4.2819896,2631.4,2631.3,3.2078]
[1739162292647,4.2819896,2631.4,2631.0,3.79040277]
[1739162293950,4.2819896,2631.4,2631.0,0.58260277]
[1739162294141,1.1205,2631.3,2631.0,0.00570277]
[1739162294542,4.28279034,2631.2,2631.0,0.00570277]
[1739162294843,6.14270077,2631.2,2631.0,0.00570277]
[1739162295053,2.4194,2631.1,2631.0,0.00570277]
[1739162296646,6.89078716,2631.1,2631.0,0.00570277]
[1739162296850,6.89078859,2631.1,2631.0,0.00570277]
[1739162297149,6.89078869,2631.1,2631.0,0.00570277]
[1739162297548,6.89078576,2631.1,2631.0,0.00570277]
[1739162298643,5.009419,2631.1,2631.0,0.00570277]
[1739162299850,0.00570277,2631.5,2631.0,0.00570277]
[1739162300158,0.00570277,2631.5,2631.4,3.2078]
[1739162300657,4.02969485,2631.5,2631.4,3.2078]
[1739162301160,0.00570277,2631.5,2631.4,3.2078]
[1739162303854,4.26979488,2631.5,2631.0,0.00570277]
[1739162306363,4.26979488,2631.5,2631.1,3.2078]
[1739162307667,0.00570277,2631.5,2631.1,3.2078]
[1739162310566,0.00570277,2631.5,2631.4,3.2078]
[1739162319386,0.00570277,2631.5,2631.4,44.0078]
[1739162322880,0.00570277,2631.5,2631.4,3.2078]
[1739162323878,0.00570277,2631.5,2631.4,3.8097]
[1739162330993,0.00570277,2631.5,2631.4,4.3978]
[1739162333190,0.0984,2631.6,2631.4,4.3978]
[1739162333391,0.0984,2631.6,2631.5,1.85926267]
[1739162333591,0.0984,2631.6,2631.5,2.44322033]
[1739162334794,0.0984,2631.6,2631.5,3.20320033]
[1739162334989,0.08264236,2631.6,2631.5,8.44322033]
[1739162335395,0.00570277,2631.8,2631.5,8.44322033]
[1739162335596,0.00570277,2631.8,2631.7,5.06706267]
[1739162335797,3.2078,2633.3,2631.7,10.470283]
[1739162336001,0.06439773,2633.2,2632.9,1.85926267]
[1739162336292,5.97510242,2633.5,2633.0,3.2078]
[1739162336497,1.7681,2633.5,2633.0,3.2078]
[1739162336704,4.15285277,2633.4,2633.0,3.2078]
[1739162336998,4.15285277,2633.4,2633.0,3.21350277]
[1739162338898,4.15285277,2633.4,2633.0,3.78820277]
[1739162339289,4.15285277,2633.4,2633.0,3.21350277]
[1739162339598,4.15285277,2633.4,2633.0,0.00570277]
[1739162342701,1.92368607,2633.3,2633.0,0.00570277]
[1739162342898,1.85926267,2633.3,2633.0,0.00570277]
[1739162343200,3.97745941,2633.2,2633.0,0.00570277]
[1739162343692,1.77380277,2633.5,2633.1,1.85926267]
[1739162343892,1.77380277,2633.5,2633.4,3.2078]
[1739162344094,1.77380277,2633.5,2633.1,3.2078]
[1739162344301,5.98434113,2633.5,2633.1,3.2078]
[1739162345094,7.8436038,2633.5,2633.0,0.00570277]
[1739162345294,1.85926267,2633.3,2633.0,0.00570277]
[1739162345494,7.8436038,2633.5,2633.0,0.00570277]
[1739162345701,4.16988243,2633.2,2633.0,0.00570277]
[1739162346197,3.63306544,2633.5,2633.0,0.00570277]
[1739162346502,4.16988243,2633.1,2633.0,0.00570277]
[1739162346696,4.16988243,2633.3,2633.0,0.00570277]
[1739162346896,3.63306544,2633.5,2633.0,0.00570277]
[1739162347100,4.09951861,2633.2,2633.0,0.00570277]
[1739162347400,4.09951861,2633.3,2633.0,0.00570277]
[1739162347698,3.63306544,2633.5,2633.0,0.00570277]
[1739162347904,4.25132471,2633.3,2633.0,0.00570277]
[1739162348104,4.25132471,2633.4,2633.0,0.00570277]
[1739162348305,3.63306544,2633.5,2633.0,0.00570277]
[1739162348498,0.06442053,2633.4,2633.0,0.00570277]
[1739162348699,4.09885501,2633.4,2633.0,0.00570277]
[1739162349002,1.85926267,2633.1,2633.0,0.00570277]
[1739162349403,5.95811768,2633.1,2633.0,0.00570277]
[1739162349705,5.95811768,2633.1,2632.8,3.2078]
[1739162349706,6.02253958,2633.1,2632.8,3.2078]
[1739162349906,1.1476,2633.0,2632.8,3.2078]
[1739162350305,4.02636187,2632.9,2632.8,3.2078]
[1739162351209,4.02636187,2632.9,2632.6,0.00570277]
[1739162351402,5.88562454,2632.9,2632.6,0.00570277]
[1739162351600,1.85926267,2632.7,2632.1,3.2078]
[1739162352104,4.28279699,2632.6,2632.1,3.2078]
[1739162352400,0.5543,2632.5,2632.1,3.2078]
[1739162352708,1.1666,2632.5,2632.1,3.2078]
[1739162352898,4.05041347,2632.4,2632.1,3.2078]
[1739162354612,0.6123,2632.5,2632.2,2.41446267]
[1739162354903,0.19114003,2632.9,2632.4,5.06706267]
[1739162354904,1.1317,2632.8,2632.4,5.06706267]
[1739162355107,1.6978,2632.8,2632.4,3.2078]
[1739162355309,5.88262497,2632.8,2632.4,3.2078]
[1739162356908,1.6978,2632.8,2632.4,5.06706267]
[1739162357104,1.7413,2633.1,2632.7,3.2078]
[1739162357308,1.7413,2633.1,2632.8,1.1646]
[1739162357605,4.17020988,2633.0,2632.8,6.23166267]
[1739162357811,1.74700277,2633.5,2632.9,44.0078]
[1739162358006,4.28167207,2633.4,2633.0,1.85926267]
[1739162358201,1.74700277,2633.5,2633.2,3.2078]
[1739162358610,4.28167207,2633.4,2633.2,3.2078]
[1739162359012,4.28167207,2633.4,2633.3,0.5988]
[1739162359200,0.00570277,2633.5,2633.3,1.1646]
[1739162359806,0.00570277,2633.5,2633.3,1.16215973]
[1739162360614,0.00570277,2633.5,2633.4,1.85926267]
[1739162361412,0.00570277,2633.5,2633.4,4.81926267]
[1739162361618,0.5717,2634.2,2633.4,4.81926267]
[1739162361807,0.5717,2634.2,2633.8,5.06706267]
[1739162362008,4.33973733,2634.1,2633.8,5.06706267]
[1739162362309,0.5908,2634.4,2633.8,5.06706267]
[1739162362913,0.59650277,2634.4,2633.8,5.07276544]
[1739162363117,0.59650277,2634.4,2633.9,0.5607]
[1739162364810,0.59650277,2634.4,2633.9,1.1566]
[1739162365009,0.78276562,2634.4,2633.9,1.1566]
[1739162367716,0.78276562,2634.4,2634.1,3.2078]
[1739162369218,2.64202829,2634.4,2633.9,1.1566]
[1739162369418,3.96278201,2634.3,2633.9,1.1566]
[1739162369611,3.96278201,2634.3,2633.8,0.00570277]
[1739162371210,1.85926267,2634.1,2633.8,0.00570277]
[1739162371416,0.5651,2634.0,2633.8,0.00570277]
[1739162371710,0.6001,2633.9,2633.8,0.00570277]
[1739162372109,4.73259708,2633.9,2633.8,0.00570277]
[1739162372316,4.79700632,2633.9,2633.8,0.00570277]
[1739162373015,4.73259708,2633.9,2633.8,0.00570277]
[1739162373215,4.79700767,2633.9,2633.8,0.00570277]
[1739162373821,0.75933,2633.8,2633.1,3.2078]
[1739162374123,1.85926267,2633.5,2633.1,3.2078]
[1739162374315,1.1474,2633.4,2633.1,3.2078]
[1739162374621,6.9787017,2633.4,2633.1,3.2078]
[1739162375216,4.0203017,2633.4,2633.1,3.2078]
[1739162375416,0.18682286,2633.6,2633.2,1.1317]
[1739162375924,4.21020049,2633.6,2633.3,40.8]
[1739162376128,0.5996,2633.9,2633.3,40.8]
[1739162376324,2.3824,2634.1,2633.4,3.2078]
[1739162376526,2.3824,2634.1,2633.3,42.65926267]
[1739162376527,4.21020049,2633.7,2633.3,42.65926267]
[1739162376725,4.17717724,2634.0,2633.6,3.2078]
[1739162377026,2.3824,2634.1,2633.7,1.1317]
[1739162377222,4.17717724,2634.0,2633.7,1.1317]
[1739162377822,4.17717724,2634.0,2633.7,0.5533]
[1739162378124,4.17717724,2634.0,2633.6,3.2078]
[1739162379818,1.85926267,2633.9,2633.6,3.2078]
[1739162380329,4.95584207,2633.8,2633.4,1.1861]
[1739162380625,0.5788,2633.7,2633.4,1.1861]
[1739162381025,4.05757468,2633.6,2633.4,1.1861]
[1739162382122,4.05757468,2633.6,2633.5,3.2078]
[1739162382426,1.1367,2634.1,2633.5,3.2078]
[1739162382829,4.24618528,2634.0,2633.5,3.2078]
[1739162383324,1.92366909,2633.9,2633.4,1.1861]
[1739162383625,1.85926267,2633.9,2633.4,1.1861]
[1739162383820,4.37196988,2633.8,2633.4,1.1861]
[1739162384330,0.5883,2633.7,2633.2,3.2078]
[1739162384521,1.1708,2633.6,2633.2,3.7909]
[1739162384828,5.37601384,2633.6,2633.2,3.7909]
[1739162386231,1.85926267,2633.5,2633.2,3.2078]
[1739162386630,4.05021344,2633.4,2633.2,3.2078]
[1739162392329,4.05021344,2633.4,2633.0,0.00570277]
[1739162392833,5.06706267,2633.2,2633.0,0.00570277]
[1739162393024,3.0019,2633.1,2633.0,0.00570277]
[1739162393220,6.41592443,2633.1,2633.0,0.00570277]
[1739162393420,5.76639759,2633.1,2633.0,0.00570277]
[1739162394128,3.95539759,2633.1,2633.0,0.00570277]
[1739162394529,4.17699781,2633.2,2633.0,0.00570277]
[1739162395027,1.81,2633.3,2633.0,0.00570277]
[1739162395429,4.00697677,2633.2,2633.0,0.00570277]
[1739162396426,4.22889486,2633.3,2633.0,0.00570277]
[1739162396621,4.22889486,2633.4,2633.0,3.21350277]
[1739162396927,1.95670514,2633.7,2633.0,3.21350277]
[1739162396928,4.30104581,2633.6,2633.1,0.595]
[1739162397232,1.85926267,2633.6,2633.1,0.595]
[1739162397627,6.16030848,2633.6,2633.1,0.595]
[1739162399032,6.16030848,2633.6,2633.1,3.8028]
[1739162400534,1.85926267,2633.3,2633.0,0.00570277]
[1739162400730,1.7276,2633.2,2633.0,0.00570277]
[1739162401033,6.11004906,2633.2,2633.0,0.00570277]
[1739162402435,3.66926267,2633.1,2633.0,0.00570277]
[1739162402638,3.73369432,2633.1,2633.0,0.00570277]
[1739162402831,8.09971186,2633.1,2633.0,0.00570277]
[1739162406238,8.09971186,2633.1,2633.0,0.00211266]
[1739162406938,11.30751186,2633.1,2633.0,0.00211266]
[1739162407344,11.30751452,2633.1,2633.0,0.00211266]
[1739162409741,8.09971452,2633.1,2633.0,0.00211266]
[1739162410744,8.03528021,2633.1,2633.0,0.00211266]
[1739162410947,11.30751195,2633.1,2633.0,0.00211266]
[1739162411543,12.06703195,2633.1,2632.3,0.5746]
[1739162411739,1.85926267,2632.7,2632.3,0.5746]
[1739162412248,4.59820102,2632.6,2632.3,0.5746]
[1739162412736,5.18360102,2632.6,2632.3,0.5746]
[1739162413838,1.85926267,2632.5,2632.2,0.5965]
[1739162414045,1.85926267,2632.3,2632.0,0.582]
[1739162414238,1.85926267,2632.3,2631.7,3.2078]
[1739162414446,4.83291097,2632.2,2631.7,3.2078]
[1739162415245,1.85926267,2632.1,2631.5,0.582]
[1739162415547,3.03156267,2632.1,2631.5,0.582]
[1739162415841,4.39243917,2632.0,2631.5,0.582]
[1739162416147,1.85926267,2631.9,2631.5,0.582]
[1739162416444,1.809,2631.8,2631.5,0.582]
[1739162416647,1.85926267,2631.7,2631.4,3.7629]
[1739162416847,0.5694,2631.6,2631.4,3.7629]
[1739162417046,4.92858517,2631.6,2631.4,3.2078]
[1739162417250,1.85926267,2631.5,2631.1,3.7643]
[1739162417749,4.35918517,2631.4,2631.1,3.7643]
[1739162418450,4.34827576,2631.5,2631.1,3.7643]
[1739162418747,1.85926267,2631.5,2631.1,3.7643]
[1739162418950,6.03272428,2631.5,2631.1,3.7643]
[1739162419145,6.03272428,2631.5,2631.1,0.5565]
[1739162419343,4.17346161,2631.5,2631.1,3.7643]
[1739162419545,6.03272428,2631.5,2631.1,3.7643]
[1739162419944,6.03272428,2631.5,2631.1,0.5565]
[1739162420349,6.03272428,2631.5,2631.1,3.7643]
[1739162420538,4.17346161,2631.5,2631.1,3.7643]
[1739162422149,4.17346161,2631.5,2631.1,0.5565]
[1739162422350,6.03272428,2631.5,2631.1,0.5565]
[1739162422745,6.03272428,2631.5,2631.1,3.7643]
[1739162423149,6.03272428,2631.5,2631.1,0.5565]
[1739162423351,1.85926267,2631.3,2630.9,0.5646]
[1739162423647,1.85926267,2631.3,2630.9,1.1678]
[1739162423953,4.09774534,2631.2,2630.9,1.1678]
[1739162424254,1.85926267,2631.1,2630.5,3.2078]
[1739162424449,1.85926267,2630.9,2630.5,4.3389]
[1739162424751,1.85926267,2630.7,2630.5,1.1311]
[1739162424949,1.85926267,2630.7,2630.5,0.5776]
[1739162425141,5.92444586,2630.6,2630.1,0.5535]
[1739162425347,5.92444586,2630.6,2630.1,1.1311]
[1739162425948,1.81,2630.8,2630.4,1.85926267]
[1739162426141,1.81,2630.9,2630.4,1.85926267]
[1739162426553,4.29379078,2630.8,2630.6,3.2078]
[1739162426756,4.724,2631.1,2630.7,1.1311]
[1739162427252,4.1100353,2631.0,2630.7,1.1311]
[1739162428354,4.1100353,2631.0,2630.6,3.2078]
[1739162428553,4.1100353,2631.0,2630.7,1.1496]
[1739162428747,4.1100353,2631.0,2630.7,1.7445]
[1739162428954,4.1100353,2631.0,2630.9,3.2078]
[1739162430252,0.00570277,2631.4,2630.9,3.2078]
[1739162430656,4.10078957,2631.2,2630.9,3.2078]
[1739162430856,4.10078957,2631.3,2630.9,3.2078]
[1739162431164,0.00570277,2631.4,2630.9,3.2078]
[1739162431360,4.28365258,2631.3,2630.9,3.2078]
[1739162432552,6.14291525,2631.3,2630.7,1.1496]
[1739162432752,6.70751525,2631.3,2630.7,1.1496]
[1739162433855,4.28365258,2631.3,2631.0,3.2078]
[1739162434056,4.28365258,2631.3,2630.8,1.85926267]
[1739162434057,4.28365258,2631.3,2630.8,2.42846267]
[1739162434260,4.28365258,2631.3,2631.1,3.2078]
[1739162434856,4.28365258,2631.3,2631.2,0.5529]
[1739162435557,0.00570277,2631.4,2631.2,0.5529]
[1739162435759,0.00570277,2631.4,2631.3,0.5965]
[1739162436263,4.21310034,2631.4,2631.3,0.5965]
[1739162436561,6.07236301,2631.4,2630.7,3.2078]
[1739162436760,1.24307362,2631.3,2630.7,3.2078]
[1739162436959,1.1786,2631.3,2630.7,3.2078]
[1739162437162,4.0545329,2631.2,2630.7,3.2078]
[1739162439559,4.0545329,2631.2,2630.7,5.06706267]
[1739162439764,1.81470277,2631.4,2630.8,0.606]
[1739162439965,3.99199074,2631.2,2630.7,3.2078]
[1739162440269,3.99199074,2631.3,2631.0,3.2078]
[1739162440454,4.26846544,2631.4,2631.1,1.1715]
[1739162440654,1.81470277,2631.4,2631.1,4.3793]
[1739162440858,3.99199074,2631.3,2631.1,4.3793]
[1739162442263,3.99199074,2631.3,2631.1,1.1715]
[1739162443566,3.99199074,2631.3,2630.7,40.8]
[1739162443567,5.16289074,2631.3,2630.7,3.2078]
[1739162443769,0.06447939,2631.2,2630.7,3.2078]
[1739162444170,4.61698735,2631.1,2630.7,3.2078]
[1739162445872,6.47625002,2631.1,2630.7,3.2078]
[1739162446076,8.28525002,2631.1,2630.7,3.2078]
[1739162446278,11.49305002,2631.1,2630.7,3.2078]
[1739162446973,5.06706267,2630.8,2630.1,3.2078]
[1739162447175,1.85926267,2630.4,2630.1,3.2078]
[1739162447769,1.809,2631.0,2630.2,1.85926267]
[1739162447972,1.809,2631.0,2630.4,3.2078]
[1739162447973,3.596,2631.0,2630.4,3.2078]
[1739162448173,4.04980873,2630.6,2630.4,3.2078]
[1739162448574,1.85926267,2630.8,2630.4,3.2078]
[1739162448774,4.04980873,2630.5,2630.4,3.2078]
[1739162448976,4.39060672,2630.6,2630.4,3.2078]
[1739162449181,3.596,2631.0,2630.4,3.2078]
[1739162449481,4.39060672,2630.5,2630.4,3.2078]
[1739162449877,3.596,2631.0,2630.4,3.2078]
[1739162450079,3.596,2631.0,2629.9,3.2078]
[1739162450080,4.39934636,2630.5,2629.9,3.2078]
[1739162450272,2.41416267,2630.4,2629.9,4.3661]
[1739162450583,6.20834636,2630.3,2629.9,3.7708]
[1739162451376,1.85926267,2630.1,2629.9,3.2078]
[1739162451780,4.08215776,2630.0,2629.9,3.2078]
[1739162452382,4.08215776,2630.0,2629.5,0.5746]
[1739162452578,0.5794,2629.9,2629.5,0.5746]
[1739162452982,4.2379089,2629.8,2629.5,0.5746]
[1739162453579,6.09717157,2629.8,2629.4,8.26369446]
[1739162453778,1.1627,2629.7,2629.4,8.26369446]
[1739162454181,4.07491574,2629.6,2629.4,8.26369446]
[1739162454382,1.85926267,2629.5,2628.8,3.2078]
[1739162454583,1.85926267,2629.5,2628.8,4.372]
[1739162454781,4.07491574,2629.4,2628.8,4.372]
[1739162455182,1.85926267,2629.3,2628.8,3.2078]
[1739162455379,2.41766267,2629.3,2628.8,3.2078]
[1739162455587,5.06706267,2628.9,2628.0,5.06706267]
[1739162455784,1.85926267,2628.9,2628.3,3.2078]
[1739162455983,1.808,2629.0,2628.6,3.2078]
[1739162455984,4.03610815,2628.8,2628.6,3.2078]
[1739162456288,1.808,2629.0,2628.1,41.9642]
[1739162456289,4.03610815,2628.9,2628.1,44.5926]
[1739162456484,4.61730815,2628.9,2628.2,0.5794]
[1739162456686,0.5812,2628.9,2628.2,0.5794]
[1739162456983,4.03610815,2628.8,2628.2,0.5794]
[1739162457678,1.85926267,2628.7,2628.2,0.5794]
[1739162457883,2.42116267,2628.7,2628.2,0.5794]
[1739162458078,4.204415,2628.6,2628.2,0.5794]
[1739162458293,0.5812,2628.9,2628.4,3.2078]
[1739162458484,0.00570277,2628.7,2628.4,3.2078]
[1739162459688,0.00570277,2628.7,2628.4,5.06706267]
[1739162460083,0.00570277,2628.7,2628.4,3.2078]
[1739162462186,4.37643534,2628.6,2628.4,3.2078]
[1739162462986,0.00570277,2628.7,2628.4,3.2078]
[1739162463381,4.30010488,2628.6,2628.4,3.2078]
[1739162463788,0.00570277,2628.7,2628.4,3.2078]
[1739162464491,0.00570277,2628.7,2628.4,5.06706267]
[1739162465484,3.86057694,2629.9,2628.6,1.85926267]
[1739162465789,3.86057694,2629.9,2628.2,0.5794]
[1739162465790,4.08391945,2629.8,2629.4,3.2078]
[1739162466087,1.85926267,2629.7,2629.4,3.2078]
[1739162466588,4.01344215,2629.6,2629.4,3.2078]
[1739162466984,1.85926267,2629.7,2629.4,3.2078]
[1739162467287,1.85926267,2629.5,2629.3,0.00570277]
[1739162467588,4.14081217,2629.4,2629.3,0.00570277]
[1739162467990,4.72211217,2629.4,2629.3,0.00570277]
[1739162468297,6.53111217,2629.4,2629.3,0.00570277]
[1739162468485,6.5956394,2629.4,2629.3,0.00570277]
[1739162469997,5.94981217,2629.4,2629.3,0.00570277]
[1739162470593,0.5558,2629.7,2629.3,3.21350277]
[1739162470987,3.96634539,2629.6,2629.4,0.5658]
[1739162472792,3.96634539,2629.6,2629.3,3.21350277]
[1739162472793,1.85926267,2629.5,2629.3,0.00570277]
[1739162472995,3.7663,2629.4,2629.3,0.00570277]
[1739162473191,1.85926267,2629.1,2628.7,3.2078]
[1739162473390,1.85926267,2629.1,2628.4,0.5835]
[1739162473391,1.85926267,2628.8,2628.4,0.5835]
[1739162473591,0.5585,2628.7,2628.4,0.5835]
[1739162473786,4.62700308,2628.7,2628.4,0.5835]
[1739162474195,4.62700308,2628.7,2627.9,5.65336267]
[1739162474491,1.85926267,2628.3,2628.0,0.5835]
[1739162474897,3.97411594,2628.2,2628.0,0.5835]
[1739162475091,3.97411594,2628.2,2627.9,3.2078]
[1739162476091,1.81470277,2628.4,2627.9,3.2078]
[1739162476092,4.34973775,2628.3,2627.9,3.2078]
[1739162476492,0.5709,2628.3,2627.9,3.2078]
[1739162476699,0.5645,2628.2,2627.9,3.2078]
[1739162477105,4.20172058,2628.1,2627.9,3.2078]
[1739162477401,4.20172058,2628.2,2628.0,0.6108]
[1739162477800,2.37920277,2628.4,2628.0,0.6108]
[1739162478000,4.90300428,2628.4,2628.0,0.6108]
[1739162478201,4.77780839,2628.3,2627.9,3.2078]
[1739162479695,3.2078,2628.2,2627.6,0.6108]
[1739162479902,2.52380151,2628.1,2627.6,0.6108]
[1739162480095,6.63916969,2628.1,2627.6,0.6108]
[1739162480297,6.63916969,2628.1,2627.5,3.7941]
[1739162480298,2.52380151,2627.8,2626.6,3.2078]
[1739162480505,2.52380151,2627.0,2626.6,3.7981]
[1739162481001,4.11536818,2626.9,2626.6,3.7981]
[1739162481304,4.11536818,2626.9,2626.6,3.2078]
[1739162481895,4.11536818,2626.9,2626.2,3.2078]
[1739162482295,2.52380151,2626.7,2626.2,3.2078]
[1739162482806,4.41293924,2626.6,2626.2,3.2078]
[1739162483197,0.18979629,2626.5,2626.2,3.2078]
[1739162483801,4.41293924,2626.6,2626.2,3.2078]
[1739162484001,1.809,2626.9,2626.5,3.2078]
[1739162484406,5.79875865,2626.9,2626.5,3.2078]
[1739162484605,3.98975865,2626.9,2626.5,3.2078]
[1739162486205,3.98975865,2626.9,2626.6,0.5884]
[1739162486402,3.98975865,2626.9,2626.8,3.2078]
[1739162486607,0.00570277,2627.1,2626.8,3.2078]
[1739162486900,0.00570277,2627.1,2626.8,5.73160151]
[1739162487106,0.00570277,2627.1,2626.9,0.6076]
[1739162487905,5.0168,2627.9,2626.9,6.6076]
[1739162488203,4.2544506,2627.7,2627.4,3.2078]
[1739162488508,1.809,2627.9,2627.4,3.2078]
[1739162488905,4.2544506,2627.8,2627.4,3.2078]
[1739162489099,4.2544506,2627.8,2627.7,3.2078]
[1739162489306,0.00570277,2627.9,2627.7,3.2078]
[1739162490503,0.00570277,2627.9,2627.8,0.6114]
[1739162491202,0.5837,2628.7,2627.8,1.1876]
[1739162491402,1.809,2628.6,2628.3,3.2078]
[1739162491601,4.07220177,2628.6,2628.3,3.2078]
[1739162492204,4.35836777,2628.7,2628.3,3.2078]
[1739162492612,4.36407054,2628.7,2628.3,3.2078]
[1739162492811,0.19451712,2628.7,2628.3,3.2078]
[1739162493109,4.16955342,2628.6,2628.3,3.2078]
[1739162493414,4.16955342,2628.6,2628.0,3.2078]
[1739162494510,4.16955342,2628.6,2628.3,3.2078]
[1739162500204,4.16955342,2628.6,2628.0,3.2078]
[1739162501209,4.16955342,2628.6,2628.3,3.2078]
[1739162503212,2.52380151,2628.5,2628.0,3.2078]
[1739162503515,3.40231712,2628.7,2628.0,3.2078]
[1739162503714,4.29640243,2628.4,2628.0,3.2078]
[1739162503922,4.29640243,2628.4,2628.3,3.2078]
[1739162504123,0.19451712,2628.7,2628.3,3.2078]
[1739162504417,4.0627916,2628.6,2628.3,3.2078]
[1739162504917,4.0627916,2628.6,2628.4,0.6122]
[1739162507014,4.0627916,2628.6,2628.4,1.2258]
[1739162509321,0.19451712,2628.7,2628.4,1.2258]
[1739162510521,0.00570277,2628.7,2628.6,3.2078]
[1739162513423,0.00570277,2628.7,2628.5,0.00422864]
[1739162513622,4.04362186,2628.7,2628.5,0.00422864]
[1739162515220,0.5881,2628.6,2628.5,0.00422864]
[1739162517026,6.02483154,2628.6,2628.5,0.00422864]
[1739162521226,9.29718275,2628.6,2628.5,1e-08]
[1739162521918,6.08938275,2628.6,2628.5,1e-08]
[1739162522123,6.08938227,2628.6,2628.5,1e-08]
[1739162522525,6.02483154,2628.6,2628.5,1e-08]
[1739162523128,9.29717989,2628.6,2628.5,1e-08]
[1739162523332,0.76086,2628.5,2628.0,3.2078]
[1739162523530,15.29717989,2628.6,2628.0,3.2078]
[1739162523531,1.86361559,2628.1,2628.0,3.2078]
[1739162523831,6.06056627,2628.1,2628.0,3.2078]
[1739162524030,4.19695068,2628.1,2628.0,3.2078]
[1739162524427,3.97656056,2628.2,2628.0,3.2078]
[1739162524628,3.97656056,2628.5,2628.0,3.2078]
[1739162524629,1.86361559,2628.5,2628.0,3.2078]
[1739162525025,3.97656056,2628.2,2628.0,3.2078]
[1739162525229,3.97656056,2628.4,2628.0,3.2078]
[1739162525528,1.86361559,2628.5,2628.0,3.2078]
[1739162525833,4.35558635,2628.4,2628.0,3.2078]
[1739162526032,1.86361559,2628.3,2628.0,3.2078]
[1739162526426,4.41190323,2628.2,2628.0,3.2078]
[1739162527134,4.41190323,2628.2,2627.7,1.1931]
[1739162527135,4.23681559,2628.1,2627.4,0.00570277]
[1739162527340,1.86361559,2627.6,2627.4,0.00570277]
[1739162527540,0.5965,2627.5,2627.4,0.00570277]
[1739162527833,4.70885359,2627.5,2627.4,0.00570277]
[1739162528534,6.51585359,2627.5,2626.9,3.2078]
[1739162528729,1.86361559,2627.2,2626.9,3.2078]
[1739162529229,1.86361559,2627.0,2626.5,41.9638]
[1739162529428,1.86361559,2626.8,2626.2,3.2078]
[1739162529832,4.19452021,2626.7,2626.2,44.01350277]
[1739162530331,4.19452021,2626.7,2626.2,3.21350277]
[1739162530637,4.19452021,2626.7,2626.5,3.2078]
[1739162530828,0.00570277,2626.8,2626.5,3.2078]
[1739162531535,0.00570277,2626.8,2626.6,1.86361559]
[1739162531736,0.00570277,2626.8,2626.7,0.6012]
[1739162532941,0.00570277,2626.8,2626.7,41.4012]
[1739162533436,0.00570277,2626.8,2626.7,42.0137]